{"text_format":"1","workbook":"xlsx","n_sheets":1,"sheets":["Sheet1"],"not_rendered":{"charts":0,"images":8,"macros":1,"external_links":0,"defined_names":0,"comments":0,"pivot_tables":0},"unopened":[],"bounds":{"document_bytes":16777216,"sheet_cells":100000,"rows_first":2000,"rows_last":500,"rows_between":2000,"halvings":0,"cell_chars":16384,"cell_head_chars":4096},"cells_cut":0,"cells_raw":0,"read":"whole","date_system":"1900"}

{"sheet":"Sheet1","index":0,"n_rows":34,"n_cols":14,"rows_kept":34,"cut":false,"hidden":false,"merged":[]}
[]
[]
[null,null,null,null,null,"반",2]
[null,null,null,null,null,"평균",50,"(이상)"]
[]
[]
[null,null,null,null,null,null,"반리스트",null,"번호","이름","반","국어","수학","평균"]
[null,null,null,null,null,null,1,null,1,"도률율",3,83,42,{"$f":"AVERAGE(L8:M8)","v":62.5}]
[null,null,null,null,null,null,2,null,2,"서도리",1,29,76,{"$f":"AVERAGE(L9:M9)","v":52.5}]
[null,null,null,null,null,null,3,null,3,"남병재",2,80,9,44.5]
[null,null,null,null,null,null,null,null,4,"편준우",3,17,34,25.5]
[null,null,null,null,null,null,null,null,5,"하연림",3,35,100,67.5]
[null,null,null,null,null,null,null,null,6,"도주하",1,36,44,40]
[null,null,null,null,null,null,null,null,7,"고의우",2,31,13,22]
[null,null,null,null,null,null,null,null,8,"우유채",1,34,16,25]
[null,null,null,null,null,null,null,null,9,"장주령",1,86,56,71]
[null,null,null,null,null,null,null,null,10,"문경호",2,67,4,35.5]
[null,null,null,null,null,null,null,null,11,"염도름",2,72,51,61.5]
[null,null,null,null,null,null,null,null,12,"하진주",3,72,63,67.5]
[null,null,null,null,null,null,null,null,13,"진성련",1,49,50,49.5]
[null,null,null,null,null,null,null,null,14,"추지인",1,71,13,42]
[null,null,null,null,null,null,null,null,15,"임의우",2,58,48,53]
[null,null,null,null,null,null,null,null,16,"문양주",2,100,54,77]
[null,null,null,null,null,null,null,null,17,"정승휘",3,65,25,45]
[null,null,null,null,null,null,null,null,18,"진초신",2,9,63,36]
[null,null,null,null,null,null,null,null,19,"강원온",2,61,72,66.5]
[null,null,null,null,null,null,null,null,20,"표여휘",2,33,87,60]
[]
[]
[null,null,null,null,null,null,null,null,"블로그 :","http://withseok.tistory.com"]
[]
[null,null,null,null,null,null,null,null,"유튜브 :","http://bit.ly/위드석"]
[]
[null,null,null,null,null,null,null,null,"사용된 VBA 명령어 :","me.combobox, me.textbox, call, 콤보상자, 텍스트 상자, offset, userform 유저폼, 값 변경, 작동"]